Cogmind - Beta 15 @@@ ROGUE MODE // 2025.06.06 @ 19:06:26 Player: irisidem Result: Destroyed by D-53 Grenadier with Mini Grenade Launcher Performance ------------- Evolutions (0) 0 Regions Visited (4) 800 Robots Destroyed (9) 45 Value Destroyed (259) 259 Prototype IDs (23) 460 Alien Tech Used (0) 0 Bonus (300) 300 TOTAL SCORE: 1864 Bonus ------- Aligned with FarCom 300 Cogmind --------- Core Integrity 0/250 Matter 187/300 Energy 87/100 System Corruption 0% Temperature Cool (0) Movement Core (50) Location -9/Mines Parts ------- > --- POWER (1) -------- (None) > --- PROPULSION (2) --- (None) > --- UTILITY (2) ------ Improved Terrain Scanner > --- WEAPON (2) ------- (None) > --- INVENTORY (5) ---- Scrap Suit Seismic Detector Supersonic Drone Bay (1/1) Light Cannon Peak State ------------ > --- POWER ------------ Light Ion Engine > --- PROPULSION ------- Aluminum Leg Aluminum Leg > --- UTILITY ---------- Small Storage Unit Improved Terrain Scanner > --- WEAPON ----------- Rocket Launcher Makeshift Hammer > --- INVENTORY -------- Light Nuclear Core Scrap Suit Seismic Detector Supersonic Drone Bay Medium Laser Light Cannon [Rating: 15] Favorites ----------- Power Light Ion Engine Engine Light Ion Engine Propulsion Aluminum Leg Leg Aluminum Leg Utility Small Storage Unit Device Seismic Detector Storage Small Storage Unit Weapon Medium Laser Energy Gun Medium Laser Ballistic Gun Assault Rifle Ballistic Cannon Light Cannon Launcher Rocket Launcher Impact Weapon Makeshift Hammer Build | -11 -10 -10 -10 -9 ------- Run | Yrd Mat Min Exi Min Slots Evolved . | . . . . . Power . | . . . . . Propulsion . | . . . . . Utility . | . . . . . Weapon . | . . . . . Parts Attached 15 | 6 2 3 . 4 Power 1 | 1 . . . . Engine 1 | 1 . . . . Core . | . . . . . Reactor . | . . . . . Propulsion 4 | 2 . . . 2 Treads . | . . . . . Leg 4 | 2 . . . 2 Wheel . | . . . . . Hover . | . . . . . Flight . | . . . . . Utility 4 | 1 1 2 . . Device 2 | . . 2 . . Storage 2 | 1 1 . . . Processor . | . . . . . Hackware . | . . . . . Protection . | . . . . . Artifact . | . . . . . Weapon 6 | 2 1 1 . 2 Energy Gun 1 | . 1 . . . Energy Cannon . | . . . . . Ballistic Gun 2 | 2 . . . . Ballistic Cannon 1 | . . 1 . . Launcher 1 | . . . . 1 Special Weapon . | . . . . . Impact Weapon 1 | . . . . 1 Slashing Weapon . | . . . . . Piercing Weapon . | . . . . . Special Melee Weapon . | . . . . . Unidentified Prototypes . | . . . . . Parts Lost 4 | . . . . 4 Power 1 | . . . . 1 Propulsion 2 | . . . . 2 Utility . | . . . . . Weapon 1 | . . . . 1 Highest Loss Streak 4 | . . . . 4 To Critical Strikes . | . . . . . Average Backups 6 | 1 5 7 6 6 Power 1 | . 1 1 1 1 Propulsion 1 | . 1 2 2 1 Utility 1 | . . 2 2 3 Weapon 1 | . 2 2 1 1 Tool/Special . | . . . . . Unused Backups 9 | . 3 1 1 4 Power 3 | . 2 . . 1 Propulsion . | . . . . . Utility 4 | . 1 1 . 2 Weapon 2 | . . . 1 1 Tool/Special . | . . . . . Average Slot Usage (%) 96 | . 90 100 100 96 Engine 13 | . 14 14 14 13 Leg 27 | . 28 28 28 26 Device 10 | . . 12 14 14 Storage 15 | . 18 15 14 13 Energy Gun 10 | . 2 14 14 8 Ballistic Gun 8 | . 25 7 . . Ballistic Cannon 7 | . . 6 14 11 Impact Weapon 1 | . . . . 5 Peak Build Rating 15 | 6 8 10 9 15 Average Rating 8 | 3 6 8 8 11 On Entrance 6 | . 6 7 8 9 Naked Turns . | . . . . . Heaviest Build 16 | 12 16 16 14 16 Greatest Support 20 | 20 20 20 20 20 Greatest Overweight (x) 1 | . . . . 1 Average Overweight (x) . | . . . . . Largest Inventory Capacity 8 | 8 8 8 8 8 Average Capacity 7 | 6 8 8 8 7 Most Carried 8 | 5 8 8 8 8 Average Carried 7 | 1 5 7 7 7 Final Capacity 8 | 8 8 8 8 5 Final Carried 8 | 1 6 8 8 5 Class Distribution -------------------- 87% | Mutant 6% | Assassin 5% | Skirmisher Dominant Class ---------------- Mutant | -10/Materials Mutant | -10/Mines Mutant | -10/Exiles Assassin | -9/Mines Resources | -11 -10 -10 -10 -9 ----------- Run | Yrd Mat Min Exi Min Matter Collected 470 | 172 241 57 . . Remotely . | . . . . . Salvage Created 404 | . 370 17 . 17 Parts 25 | . 23 2 . . Haulers Intercepted . | . . . . . Recyclers Shooed . | . . . . . Parts Field Recycled . | . . . . . Retrieved Matter . | . . . . . Parts Self-Destructed . | . . . . . Prevented . | . . . . . Kills | -11 -10 -10 -10 -9 ------- Run | Yrd Mat Min Exi Min Combat Hostiles Destroyed 9 | . 6 . . 3 Melee 1 | . . . . 1 Guns 6 | . 6 . . . AOE 1 | . . . . 1 Classes Destroyed 5 | . 3 1 . 1 Tunneler 1 | . . 1 . . Recycler 1 | . 1 . . . Watcher 1 | . 1 . . . Grunt 6 | . 6 . . . Assembled 3 | . . . . 3 Best Kill Streak 3 | . 3 1 . 3 Combat Bots Only 3 | . 2 . . 3 Max Kills in Single Turn 1 | . 1 1 . 1 Gunslinging . | . . . . . Exploded 1 | . . . . 1 Melee 1 | . . . . 1 Uniques/NPCs Destroyed . | . . . . . Combat | -11 -10 -10 -10 -9 -------- Run | Yrd Mat Min Exi Min Hostile Shots Fired 45 | . 29 . . 16 Missed 9 | . 7 . . 2 Hits 36 | . 22 . . 14 Melee 6 | . . . . 6 Projectile 30 | . 22 . . 8 AOE 8 | . . . . 8 Critical Strikes 1 | . . . . 1 Damage Taken 887 | . 287 . . 600 Core 269 | . 48 . . 221 Absorbed by Shields . | . . . . . Core Remaining (%) 100 | 100 . . . . Volleys Fired 38 | . 32 1 . 5 Largest 2 | . 2 2 . 2 Hottest 83 | . 70 70 . 83 Shots Fired 73 | . 64 2 . 7 Gun 68 | . 64 2 . 2 Cannon . | . . . . . Launcher 5 | . . . . 5 Special . | . . . . . Kinetic 64 | . 63 1 . . Thermal 4 | . 1 1 . 2 Explosive 5 | . . . . 5 Electromagnetic . | . . . . . Robot Hit Streak 13 | . 13 1 . 2 Robot Miss Streak 3 | . 3 1 . 1 Penetration Max . | . . . . . Secondary Targets 1 | . 1 . . . Max Gunslinging Chain 1 | . 1 . . . Shots Hit Robots 48 | . 43 1 . 4 Core Hits 22 | . 17 1 . 4 Critical Kills . | . . . . . Critical Parts Destroyed . | . . . . . Critical Strikes . | . . . . . Melee Attacks 4 | . . . . 4 Impact 4 | . . . . 4 Slashing . | . . . . . Piercing . | . . . . . Sneak Attacks . | . . . . . Combat Hostiles . | . . . . . Follow-up Attacks . | . . . . . Damage Inflicted 766 | . 554 11 . 201 Guns 569 | . 546 11 . 12 Cannons . | . . . . . Explosions 81 | . . . . 81 Melee 105 | . . . . 105 Ramming 11 | . 8 . . 3 Kinetic 557 | . 546 11 . . Thermal 12 | . . . . 12 Explosive 81 | . . . . 81 Electromagnetic . | . . . . . Impact 105 | . . . . 105 Slashing . | . . . . . Piercing . | . . . . . Highest Corruption . | . . . . . Average Corruption . | . . . . . Corruption Purged . | . . . . . Corruption Blocked . | . . . . . Overload Shots . | . . . . . Overflow Damage 59 | . . . . 59 Projectiles . | . . . . . Explosions 10 | . . . . 10 Melee 49 | . . . . 49 Knockbacks . | . . . . . Impact . | . . . . . Kinetic . | . . . . . Secondary . | . . . . . Self-Inflicted Damage 74 | . . . . 74 Shots 3 | . . . . 3 Rammed 1 | . . . . 1 Targets Rammed 3 | . 2 . . 1 Kicked 2 | . 2 . . . Crushed . | . . . . . Highest Temperature 21 | . 9 9 . 21 Average Temperature 6 | . 3 6 . 11 Received Heat Transfer 159 | . 159 . . . Siege Activations . | . . . . . Martial Activations . | . . . . . Shielding Activations . | . . . . . Robots Disrupted . | . . . . . Combat Hostiles . | . . . . . Robots Corrupted 1 | . . . . 1 Combat Hostiles 1 | . . . . 1 Parts Fried . | . . . . . Impact Corruptions 1 | . . . . 1 Robots Melted . | . . . . . Combat Hostiles . | . . . . . Parts Melted . | . . . . . Heat Transferred 37 | . . . . 37 Parts Sabotaged . | . . . . . Parts Stolen . | . . . . . Parts Stripped . | . . . . . Power Chain Reactions . | . . . . . Alert | -11 -10 -10 -10 -9 ------- Run | Yrd Mat Min Exi Min Maximum Alert Level . | . . . . . Low Security (%) 100 | 100 100 100 . 100 Level 1 . | . . . . . Level 2 . | . . . . . Level 3 . | . . . . . Level 4 . | . . . . . Level 5 . | . . . . . High Security . | . . . . . Max Security . | . . . . . Peak Influence 85 | . 85 17 . 22 Initial 17 | . . 17 . . Average 9 | . 29 1 . 1 Influence Increases 199 | . 160 5 . 34 Destroy 0b10 Robot/C 120 | . 120 . . . Destroy 0b10 Robot/NC 15 | . 10 5 . . Destroy Leader 22 | . 22 . . . Successful Hack 8 | . 8 . . . Destroy Structure 34 | . . . . 34 Influence Decreases 199 | . 115 50 . 34 Entered New Map 28 | . . 28 . . Time Decay 157 | . 115 22 . 20 Lost Part 14 | . . . . 14 Squads Dispatched 1 | . 1 . . . Investigation . | . . . . . Extermination . | . . . . . Reinforcement 1 | . 1 . . . Assault . | . . . . . Garrison . | . . . . . Intercept . | . . . . . Searches Triggered . | . . . . . Construction Impeded . | . . . . . Haulers Reinforced . | . . . . . Active Scanning Responses . | . . . . . Cargo Convoy Interrupts . | . . . . . Stealth | -11 -10 -10 -10 -9 --------- Run | Yrd Mat Min Exi Min Distress Signals 3 | . 3 . . . Communications Jammed . | . . . . . Distress Signals . | . . . . . Times Spotted 20 | . 14 . . 6 Peak Tracking Total 4 | . 4 . . 2 Tactical Retreats . | . . . . . Traps | -11 -10 -10 -10 -9 ------- Run | Yrd Mat Min Exi Min Traps Triggered . | . . . . . Indirectly . | . . . . . Trap Hack Attempts . | . . . . . Triggered . | . . . . . Disarmed . | . . . . . Reprogrammed . | . . . . . Reused . | . . . . . Traps Extracted . | . . . . . Installed . | . . . . . Triggered . | . . . . . Machines | -11 -10 -10 -10 -9 ---------- Run | Yrd Mat Min Exi Min Machines Disabled . | . . . . . Max in Single Turn . | . . . . . Machines Repaired . | . . . . . Machines Dismantled . | . . . . . Machines Sabotaged . | . . . . . Overloaded Fab Kills . | . . . . . Hacking | -11 -10 -10 -10 -9 --------- Run | Yrd Mat Min Exi Min Machines Accessed 3 | . 2 . 1 . Terminals 1 | . 1 . . . Fabricators . | . . . . . Repair Stations . | . . . . . Recycling Units 1 | . 1 . . . Scanalyzers . | . . . . . Garrison Access . | . . . . . Total Hacks 9 | . 8 . 1 . Successful 8 | . 7 . 1 . Failed 1 | . 1 . . . Catastrophic . | . . . . . Database Lockouts . | . . . . . Manual 3 | . 2 . 1 . Terminals 2 | . 2 . . . Fabricators . | . . . . . Repair Stations . | . . . . . Recycling Units 6 | . 6 . . . Scanalyzers . | . . . . . Garrison Access . | . . . . . Terminal Hacks 3 | . 2 . 1 . Branch Access Points 1 | . 1 . . . Maintenance Status 1 | . 1 . . . Proto ID Catalog 1 | . . . 1 . Fabricator Hacks . | . . . . . Repair Station Hacks . | . . . . . Recycling Unit Hacks 5 | . 5 . . . Recycle Component 2 | . 2 . . . Process 1 | . 1 . . . Report Inventory 1 | . 1 . . . Retrieve Matter 1 | . 1 . . . Scanalyzer . | . . . . . Garrison Access Hacks . | . . . . . Unauthorized Hacks . | . . . . . Terminals . | . . . . . Fabricators . | . . . . . Repair Stations . | . . . . . Recycling Units . | . . . . . Scanalyzers . | . . . . . Garrison Access . | . . . . . Data Cores Recovered . | . . . . . Used . | . . . . . Hacking Detections 2 | . 2 . . . Full Trace Events . | . . . . . Feedback Events . | . . . . . Feedback Blocked . | . . . . . Robot Schematics Acquired . | . . . . . Robots Built . | . . . . . Authchips . | . . . . . Time . | . . . . . Total Robot Build Rating . | . . . . . Part Schematics Acquired . | . . . . . Parts Built . | . . . . . Authchips . | . . . . . Time . | . . . . . Total Part Build Rating . | . . . . . Parts Repaired . | . . . . . Time . | . . . . . Parts Recycled 2 | . 2 . . . Recycled Matter 38 | . 38 . . . Retrieved Matter 38 | . 38 . . . Retrieved Components . | . . . . . Parts Scanalyzed . | . . . . . Part Schematics Acquired . | . . . . . Parts Damaged . | . . . . . Bothacking | -11 -10 -10 -10 -9 ------------ Run | Yrd Mat Min Exi Min Used RIF Installer . | . . . . . Robots Hacked . | . . . . . Non-combat . | . . . . . Combat . | . . . . . Robot Hacks Applied . | . . . . . Relay Couplers Released . | . . . . . Fabnet Peak Effective % . | . . . . . Robots Rewired . | . . . . . Allies Hacked . | . . . . . Hacks Repelled . | . . . . . Allies | -11 -10 -10 -10 -9 -------- Run | Yrd Mat Min Exi Min Total Allies . | . . . . . Largest Group . | . . . . . Highest-Rated Group . | . . . . . Highest-Rated Ally . | . . . . . Total Orders . | . . . . . Ally Attacks . | . . . . . Total Damage . | . . . . . Kills . | . . . . . Allies Corrupted . | . . . . . Allies Melted . | . . . . . Intel | -11 -10 -10 -10 -9 ------- Run | Yrd Mat Min Exi Min Active Infowar (turns) 962 | . . 418 270 274 Terrain 346 | . . 131 . 215 Seismic 616 | . . 287 270 59 Robot Analysis Total . | . . . . . Derelict Logs Recovered 1 | . . . . 1 Drone Launches . | . . . . . Drone Recoveries . | . . . . . Exploration | -11 -10 -10 -10 -9 ------------- Run | Yrd Mat Min Exi Min Turns Passed 1379 | 47 318 470 270 274 Spaces Moved 964 | 39 156 349 224 196 Core 22 | 17 . . . 5 Treads . | . . . . . Legs 942 | 22 156 349 224 191 Wheels . | . . . . . Hover . | . . . . . Flight . | . . . . . Fastest Speed 50 | 50 120 120 120 50 Average Speed 118 | 89 120 120 120 118 Slowest Speed 190 | 120 120 120 120 190 Overloaded Moves . | . . . . . Propulsion Burnouts . | . . . . . Robots Hopped . | . . . . . Potential Cave-ins 3 | . . . . 3 Cave-ins Triggered . | . . . . . Exploration Rate (%) 34 | 3 31 59 41 36 Regions Visited 4 Branch Regions 3 Pre-discovered Areas 1 | . . . . 1 Known Exits Taken 1 | . 1 . . . Unknown Exits Taken 3 | 1 . 1 1 . Scrap Searched 3 | . . 2 . 1 Spaces Dug 9 | . . . . 9 Terrain Destroyed 60 | . . . . 60 Melee . | . . . . . Projectile . | . . . . . AOE 60 | . . . . 60 Terrain Rammed . | . . . . . Walls Destroyed . | . . . . . Machines Disabled . | . . . . . Actions | -11 -10 -10 -10 -9 --------- Run | Yrd Mat Min Exi Min Total 1120 | 51 223 397 225 224 Wait 59 | . 18 37 . 4 Move 960 | 38 155 348 223 196 Hop . | . . . . . Pick Up 25 | 7 11 4 1 2 Fast Attach . | . . . . . Attach 8 | 6 1 . . 1 Detach . | . . . . . Swap 12 | . 1 4 . 7 Drop 11 | . 3 3 1 4 Fire 38 | . 32 1 . 5 Melee 4 | . . . . 4 Ram 1 | . . . . 1 Kick 2 | . 2 . . . Crush . | . . . . . Escape Stasis . | . . . . . Rewire . | . . . . . Trap . | . . . . . Miscellaneous . | . . . . . Route ------- -11/Scrapyard -10/Materials (discovered 2 exits: *Min x2) -10/Mines (discovered 3 exits: [*Mat] / *Exi / [*Sub]) -10/Exiles -9/Mines History --------- Turn | Location | Event 4 | -11/Scrapyard | Discovered new exit (range 15) 48 | -11/Scrapyard | Entered Materials 97 | -10/Materials | Identified exit to Mines 316 | -10/Materials | Build established: Mutant 366 | -10/Materials | Entered Mines 467 | -10/Mines | Deemed a non-threat by the Exiles lab entrance 468 | -10/Mines | Discovered new exit (range 5) 507 | -10/Mines | YI-UF0 nonchalantly dropped a Grenade Launcher on the ground 602 | -10/Mines | Found a Scrap Suit stashed away for nefarious purposes 608 | -10/Mines | Found Scrap Suit 650 | -10/Mines | Discovered new exit (range 9) 750 | -10/Mines | Discovered new exit (range 6) 836 | -10/Mines | Entered Exiles 865 | -10/Exiles | Met 8R-AWN 886 | -10/Exiles | Met EX-HEX 920 | -10/Exiles | Met EX-BIN 935 | -10/Exiles | Aligned with FarCom system 936 | -10/Exiles | Given EX-Vault access code 968 | -10/Exiles | Opened EX-Vault 979 | -10/Exiles | Found Supersonic Drone Bay 1005 | -10/Exiles | Warned to stay clear of 0b10 Research branches 1091 | -10/Exiles | Discovered new exit (range 14) 1106 | -10/Exiles | Left Exiles lab with Supersonic Drone Bay 1106 | -10/Exiles | Entered Mines 1193 | -9/Mines | A weapon hastily lodged in a ceiling crevice suddenly fell to the ground 1256 | -9/Mines | Received a Rocket Launcher from a helpful Derelict 1327 | -9/Mines | Assembled infested the area 1375 | -9/Mines | Core integrity fell below 50% 1379 | -9/Mines | Core integrity fell below 20% 1380 | -9/Mines | Destroyed by D-53 Grenadier with Mini Grenade Launcher Last Messages --------------- as-23585 destroyed. Aluminum Leg severed. The unstable cave ceiling collapses. Destroyed Asb. Hover Unit. as-72930 system corrupted by crushing effect. as-72930 system terminally corrupted. as-99107 destroyed. The unstable cave ceiling collapses. as-67760 destroyed. Aluminum Leg destroyed. Destroyed Aluminum Leg. Lgt. Ion Engine destroyed. Aluminum Leg destroyed. Rocket Launcher destroyed. U-05 Engineer builds a Wall. Dropped Sml. Storage Unit. Dropped Mak. Hammer. The unstable cave ceiling collapses. U-05 Engineer lays Concrete. Slammed into U-05 Engineer. Map ----- +----------------------------------------------------+ | ??????????## ##??# #?## ###?????????? | | ???#???????## #??# ##?# ##??#???????? | | ????????????# #??# ##?# #???????????? | | ????????#???## ##?? ???# #???????????? | | ?????????????######?##???# #???????#???? | | ?????????????????????????# #???????????? | | ???????????? ??????????### #?#?????????? | | ??????????? ???????????# #??????#????? | | ???????????????????????# ###?????#?????? | | ???????????? ?????#???## #?????????????? | | ???????????????????????# ##????????????? | | ??????????? ???????????# #???????????#?? | | ????????????????#??????# #?????????????? | | ????????? ?????? ??????# #???#?????????? | | ???????????????????????# #??#??#???????? | | ???????????????????????# ##????????????? | | ???????????????????##### #???#########?? | | ???????????????????# #???# #??? | | ??????????????#????# #####???# !!! ##?? | | ???????????????????# #???????# ! ! #?? | | ???????????? ????### ######### ! ! #?? | | ?????????????????# !!! ##? | | ?????????????????# ###### #### #?? | | ???????????????? ?????# #??#########?? | | ??????????????####?????## ### # ##??# | | ???????????????????????##@# ##?? | | ?????????????????????####uu #?? | | ????????????????????## ##?# | | ?????????????????????# / #?? | | ?????????????????????# d ! ## | | ????????????????????### #? | | ?????????????#???????# d ## | | ?????????????????#???# # #? | | ?????????????????????## # ###? | | ????????????#?#???????# #######??? | | ??????????????????????# #?????#??? | | ??????????????????#???# #????????? | | ??????????????????????# ????????? | | ????????????????????#?# ?#????#?? | | ??????????????????????# ????????? | | ??????????????????????# ????????? | | ??????????????????????# s????????? | | ????????????????????????# # % ????????? | | ??????????????????????????## ??????????? | | ???????????????????????????????????????? | | ???????????????????????????????????????? | | ???????????????????????????????????????? | | ???????????????????????????????????????? | | ???????????????????????????????????????? | | ???????????????????????????????????????? | +----------------------------------------------------+ Best States ------------- Heat Dissipation 25 Energy Generation 10 Energy Capacity 125 Matter Stores 300 Matter Capacity 500 Sight Range 16 Terrain Scan Range 16 Terrain Scan Density 10 Evasion (%) 55 Item Schematics ----------------- None Robot Schematics ------------------ None Fabricated ------------ Nothing Repaired ---------- Nothing Alien Tech Used ----------------- None Achievements -------------- None Challenges ------------ None Game ------ Seed DamperPiercingUnit Manual? 0 Play Time 00:18:06 Cumulative 23.8 hours Start 2025.06.06 @ 18:51:00 End 2025.06.06 @ 19:06:26 Sessions 1 Manual Loads 0 Difficulty Rogue Special Mode None Game No. 60 Rogue 51 Adventurer 9 Explorer 0 Win Type - Total 0 Types 0/0/0/0/0/0/0/0/0/0 Lore% 13 Gallery% 28 Achievement% 27 Wizard Run 0 Options --------- Layout 0 ASCII 0 Keyboard 0 Movement Numpad Keybinds 0 Fullscreen 1 Font 18/SmallcapsGlow Map View 76x50 Zoom Use 0% Tactical HUD 0 Map Filters NONE Filters NONE Steam 1 RUN: 18b7d59d-483f-4edb-8eb1-df24b8063962